bitfinex-derivatives/quotes_BNBF0:USTF0_20250524
["timestamp","ask_amount","ask_price","bid_price","bid_amount"]
[1748093599627,0.44075368,673.91,673.24,0.84191179]
[1748093599827,0.44075368,673.9,673.24,0.84191179]
[1748093600126,0.44075368,673.89,673.24,0.84191179]
[1748093600327,0.44075368,673.88,673.25,0.84191179]
[1748093600528,0.29677113,673.92,673.25,0.84191179]
[1748093600835,0.4406207,673.91,673.25,0.84191179]
[1748093601135,0.4406207,673.9,673.25,0.84191179]
[1748093601330,0.29677113,673.92,673.26,0.84191179]
[1748093601533,0.44058656,673.91,673.26,0.84191179]
[1748093601833,0.44058656,673.9,673.26,0.84191179]
[1748093602030,0.44058656,673.89,673.26,0.84191179]
[1748093602334,0.44058656,673.88,673.26,0.84191179]
[1748093602536,0.29677113,673.92,673.26,0.84191179]
[1748093602836,0.44050685,673.91,673.27,0.84191179]
[1748093603037,0.44050685,673.9,673.27,0.84191179]
[1748093603232,0.44050685,673.89,673.27,0.84191179]
[1748093603435,0.29677113,673.92,673.27,0.84191179]
[1748093603636,0.4404847,673.91,673.27,0.84191179]
[1748093603837,0.4404847,673.9,673.27,0.84191179]
[1748093604038,0.4404847,673.89,673.27,0.84191179]
[1748093604240,0.29677113,673.92,673.28,0.84191179]
[1748093604432,0.440445,673.91,673.28,0.84191179]
[1748093604633,0.440445,673.9,673.28,0.84191179]
[1748093604936,0.440445,673.89,673.28,0.84191179]
[1748093605139,0.29677113,673.92,673.28,0.84191179]
[1748093605436,0.44043524,673.91,673.28,0.84191179]
[1748093605637,0.44043524,673.9,673.28,0.84191179]
[1748093605838,0.29677113,673.92,673.29,0.84191179]
[1748093606033,0.4404533,673.91,673.29,0.84191179]
[1748093606234,0.29677113,673.92,673.29,0.84191179]
[1748093606439,0.44044018,673.91,673.29,0.84191179]
[1748093606739,0.29677113,673.92,673.29,0.84191179]
[1748093607738,0.29677113,673.92,673.3,0.84191179]
[1748093608941,0.29677113,673.92,673.31,0.84191179]
[1748093609436,0.4403905,673.91,673.32,0.84191179]
[1748093609640,0.29677113,673.92,673.32,0.84191179]
[1748093609843,0.44038244,673.91,673.32,0.84191179]
[1748093610041,0.29677113,673.92,673.32,0.84191179]
[1748093610337,0.44038057,673.91,673.32,0.84191179]
[1748093610541,0.29677113,673.92,673.33,0.84191179]
[1748093610941,0.44039983,673.91,673.33,0.84191179]
[1748093611241,0.29677113,673.92,673.33,0.84191179]
[1748093611442,0.44040263,673.91,673.24,0.84191179]
[1748093611637,0.29677113,673.92,673.24,0.84191179]
[1748093611840,0.44043454,673.91,673.24,0.84191179]
[1748093612041,0.29677113,673.92,673.24,0.84191179]
[1748093612338,0.44043395,673.91,673.24,0.84191179]
[1748093612537,0.29677113,673.92,673.24,0.84191179]
[1748093612742,0.44047067,673.91,673.24,0.84191179]
[1748093613044,0.44046531,673.9,673.25,0.84191179]
[1748093613244,0.73724965,673.89,673.25,1.54591179]
[1748093613446,0.73725405,673.88,673.25,1.54591179]
[1748093613744,0.73725846,673.87,673.26,0.84191179]
[1748093613946,0.44046531,673.86,673.26,0.84191179]
[1748093614444,0.44055409,673.85,673.26,0.84191179]
[1748093614639,0.44055409,673.84,673.26,0.84191179]
[1748093614842,0.44055409,673.83,673.26,0.84191179]
[1748093615041,0.44055409,673.82,673.26,0.84191179]
[1748093615243,0.44055409,673.81,673.26,0.84191179]
[1748093615446,0.44055409,673.8,673.26,0.84191179]
[1748093615642,0.44055409,673.79,673.26,0.84191179]
[1748093615846,0.29679315,673.87,673.26,0.84191179]
[1748093615847,0.44055409,673.78,673.26,0.84191179]
[1748093616048,0.44055409,673.77,673.26,0.84191179]
[1748093616247,0.29679315,673.87,673.26,0.84191179]
[1748093616547,0.44067342,673.86,673.26,0.84191179]
[1748093616750,0.44067342,673.85,673.26,0.84191179]
[1748093616945,0.44067342,673.84,673.26,0.84191179]
[1748093617142,0.44067342,673.83,673.26,0.84191179]
[1748093617342,0.44067342,673.82,673.26,0.84191179]
[1748093617544,0.44067342,673.81,673.26,0.84191179]
[1748093617745,0.44067342,673.8,673.26,0.84191179]
[1748093617943,0.44067342,673.79,673.26,0.84191179]
[1748093618142,0.44083973,673.78,673.26,0.84191179]
[1748093618348,0.44083973,673.77,673.26,0.84191179]
[1748093618548,0.44083973,673.76,673.26,0.84191179]
[1748093618847,0.44083973,673.75,673.26,0.84191179]
[1748093619047,0.29679315,673.87,673.26,0.84191179]
[1748093619248,0.44094931,673.86,673.26,0.84191179]
[1748093619447,0.29679315,673.87,673.26,0.84191179]
[1748093619448,0.44094931,673.85,673.26,0.84191179]
[1748093619642,0.44094931,673.84,673.26,0.84191179]
[1748093619847,0.44094931,673.83,673.26,0.84191179]
[1748093620045,0.44106489,673.82,673.26,0.84191179]
[1748093620248,0.44106489,673.81,673.26,0.84191179]
[1748093620548,0.44106489,673.8,673.26,0.84191179]
[1748093620748,0.44106489,673.79,673.26,0.84191179]
[1748093620949,0.44106489,673.78,673.26,0.84191179]
[1748093621149,0.44106489,673.77,673.26,0.84191179]
[1748093621350,0.44106489,673.76,673.26,0.84191179]
[1748093621550,0.44106489,673.75,673.26,0.84191179]
[1748093621846,0.44106489,673.74,673.26,0.84191179]
[1748093622050,0.44106489,673.73,673.26,0.84191179]
[1748093622246,0.44106489,673.72,673.26,0.84191179]
[1748093622445,0.44106489,673.71,673.26,0.84191179]
[1748093622645,0.44106489,673.7,673.26,0.84191179]
[1748093622850,0.29679315,673.87,673.26,0.84191179]
[1748093623047,0.44134802,673.86,673.26,0.84191179]
[1748093623252,0.44134802,673.85,673.26,0.84191179]
[1748093623447,0.44134802,673.84,673.26,0.84191179]
[1748093623645,0.44135879,673.83,673.26,0.84191179]
[1748093623850,0.44135879,673.82,673.26,0.84191179]
[1748093624048,0.44135879,673.81,673.26,0.84191179]
[1748093624347,0.44135879,673.8,673.26,0.84191179]
[1748093624547,0.44135879,673.79,673.26,0.84191179]
[1748093624847,0.44135879,673.78,673.26,0.84191179]
[1748093625050,0.44135879,673.77,673.26,0.84191179]
[1748093625251,0.44135879,673.76,673.26,0.84191179]
[1748093625448,0.44135879,673.75,673.26,0.84191179]
[1748093625652,0.44135879,673.74,673.26,0.84191179]
[1748093625852,0.44135879,673.73,673.26,0.84191179]
[1748093626152,0.44135879,673.72,673.26,0.84191179]
[1748093626352,0.44135879,673.71,673.26,0.84191179]
[1748093626553,0.44135879,673.7,673.26,0.84191179]
[1748093626852,0.44135879,673.69,673.26,0.84191179]
[1748093627053,0.44135879,673.68,673.26,0.84191179]
[1748093627247,0.29679315,673.87,673.26,0.84191179]
[1748093627452,0.44144364,673.86,673.26,0.84191179]
[1748093627652,0.44144364,673.85,673.26,0.84191179]
[1748093627845,0.44144364,673.84,673.26,0.84191179]
[1748093628050,0.44144364,673.83,673.26,0.84191179]
[1748093628250,0.44144364,673.82,673.26,0.84191179]
[1748093628453,0.44144364,673.81,673.26,0.84191179]
[1748093628655,0.44144364,673.8,673.26,0.84191179]
[1748093628855,0.44144364,673.79,673.26,0.84191179]
[1748093629050,0.44144364,673.78,673.26,0.84191179]
[1748093629253,0.44144364,673.77,673.26,0.84191179]
[1748093629553,0.44144364,673.76,673.26,0.84191179]
[1748093629752,0.44144364,673.75,673.26,0.84191179]
[1748093630052,0.44144364,673.74,673.26,0.84191179]
[1748093630248,0.44144364,673.73,673.26,0.84191179]
[1748093630453,0.44144364,673.72,673.26,0.84191179]
[1748093630650,0.44144364,673.71,673.26,0.84191179]
[1748093630855,0.44144364,673.7,673.26,0.84191179]
[1748093631156,0.44181734,673.69,673.26,0.84191179]
[1748093631355,0.44181734,673.68,673.26,0.84191179]
[1748093631652,0.44181734,673.67,673.26,0.84191179]
[1748093631955,0.44181734,673.66,673.26,0.84191179]
[1748093632156,0.44181734,673.65,673.26,0.84191179]
[1748093632356,0.44181734,673.64,673.26,0.84191179]
[1748093632552,0.44181734,673.63,673.26,0.84191179]
[1748093632757,0.44181734,673.62,673.26,0.84191179]
[1748093632956,0.44181734,673.61,673.26,0.84191179]
[1748093633157,0.44181734,673.6,673.26,0.84191179]
[1748093633351,0.44181734,673.59,673.26,0.84191179]
[1748093633555,0.44181734,673.58,673.25,0.704]
[1748093633754,0.29689448,673.64,673.25,0.704]
[1748093633755,0.44181734,673.57,673.25,0.704]
[1748093633957,0.44181734,673.56,673.25,0.704]
[1748093634151,0.44181734,673.55,673.25,0.704]
[1748093634354,0.44181734,673.54,673.25,0.704]
[1748093634551,0.44181734,673.53,673.25,0.704]
[1748093634753,0.44181734,673.52,673.25,0.704]
[1748093635055,0.44181734,673.51,673.25,0.704]
[1748093635255,0.29689448,673.64,673.25,0.704]
[1748093635455,0.4418755,673.63,673.25,0.704]
[1748093635653,0.4418755,673.62,673.25,0.704]
[1748093635857,0.4418755,673.61,673.25,0.704]
[1748093636058,0.4418755,673.6,673.25,0.704]
[1748093636253,0.4418755,673.59,673.25,0.704]
[1748093636456,0.4418755,673.58,673.25,0.704]
[1748093636754,0.4418755,673.57,673.25,0.704]
[1748093636957,0.4418755,673.56,673.25,0.704]
[1748093637259,0.4418755,673.55,673.25,0.704]
[1748093637460,0.4418755,673.54,673.25,0.704]
[1748093637661,0.4418755,673.53,673.25,0.704]
[1748093637855,0.4418755,673.52,673.25,0.704]
[1748093638159,0.4418755,673.51,673.25,0.704]
[1748093638460,0.4418755,673.51,673.0,0.88869638]
[1748093638461,0.44181305,673.5,673.0,0.88869638]
[1748093638660,0.44181305,673.49,673.0,0.88869638]
[1748093638861,0.44181305,673.48,673.0,0.88869638]
[1748093639161,0.44181305,673.47,673.0,0.88869638]
[1748093639361,0.44181305,673.46,673.0,0.88869638]
[1748093639561,0.29689448,673.64,673.01,0.84518202]
[1748093639761,0.4431389,673.63,673.01,0.84518202]
[1748093639962,0.74004219,673.62,673.01,0.84518202]
[1748093640162,0.74002718,673.61,673.01,0.84518202]
[1748093640362,0.44311948,673.6,673.01,0.84518202]
[1748093640560,0.44311948,673.59,673.02,0.84518202]
[1748093640760,0.44311948,673.58,673.02,1.61418202]
[1748093641059,0.44311948,673.57,673.02,1.61418202]
[1748093641260,0.44311948,673.56,673.02,1.61418202]
[1748093641461,0.44311948,673.55,673.02,1.61418202]
[1748093641663,0.44311948,673.54,673.02,1.61418202]
[1748093641864,0.44311948,673.53,673.02,1.61418202]
[1748093642063,0.2969077,673.61,673.03,0.84518202]
[1748093642064,0.44311948,673.52,673.03,0.84518202]
[1748093642257,0.44311948,673.51,673.03,0.84518202]
[1748093642458,0.44311948,673.5,673.03,0.84518202]
[1748093642664,0.44311948,673.49,673.03,0.84518202]
[1748093642859,0.44311948,673.48,673.03,0.84518202]
[1748093643061,0.44311948,673.47,673.03,0.84518202]
[1748093643262,0.44311948,673.46,673.04,0.84518202]
[1748093643463,0.44311948,673.45,673.04,0.84518202]
[1748093643759,0.2969077,673.61,673.04,0.84518202]
[1748093643760,0.44311948,673.44,673.04,0.84518202]
[1748093643963,0.44311948,673.43,673.04,0.84518202]
[1748093644157,0.2969077,673.61,673.04,0.84518202]
[1748093644364,0.44280357,673.6,673.04,0.84518202]
[1748093644559,0.73972009,673.59,673.04,0.84518202]
[1748093644762,0.73972449,673.58,673.05,0.84518202]
[1748093644963,0.7397289,673.57,673.05,0.84518202]
[1748093645163,0.73973331,673.56,673.05,0.84518202]
[1748093645459,0.44280357,673.55,673.05,0.84518202]
[1748093645660,0.44280357,673.54,673.06,0.84518202]
[1748093645959,0.44280357,673.53,673.06,0.84518202]
[1748093646162,0.44280357,673.52,673.06,0.84518202]
[1748093646362,0.44280357,673.51,673.06,0.84518202]
[1748093646565,0.44280357,673.5,673.06,0.84518202]
[1748093646766,0.44261117,673.49,673.06,0.84518202]
[1748093646966,0.44261106,673.48,673.07,0.84518202]
[1748093647162,0.44261106,673.47,673.07,0.84518202]
[1748093647367,0.44261106,673.46,673.07,0.84518202]
[1748093647562,0.44261106,673.45,673.07,0.84518202]
[1748093647760,0.44261106,673.44,673.02,0.769]
[1748093647968,0.29692974,673.56,673.02,0.769]
[1748093648170,0.44250863,673.55,673.02,0.769]
[1748093648363,0.44250863,673.54,673.02,0.769]
[1748093648567,0.44264889,673.53,673.02,0.769]
[1748093648767,0.73959627,673.52,673.02,0.769]
[1748093649066,0.73960067,673.51,673.02,0.769]
[1748093649264,0.73960508,673.5,673.03,0.8415925]
[1748093649465,0.44264889,673.49,673.03,0.8415925]
[1748093649663,0.44264889,673.48,673.03,0.8415925]
[1748093649868,0.44264889,673.47,673.03,0.8415925]
[1748093650167,0.44264889,673.46,673.03,0.8415925]
[1748093650369,0.44245395,673.45,673.02,0.769]
[1748093650567,0.44245395,673.44,673.02,0.769]
[1748093650770,0.44245395,673.43,673.02,0.769]
[1748093650970,0.44245395,673.42,673.02,0.769]
[1748093651168,0.44245395,673.41,673.02,0.769]
[1748093651367,0.29695619,673.5,673.02,0.769]
[1748093651569,0.44239079,673.49,673.02,0.769]
[1748093651770,0.44239079,673.48,673.02,0.769]
[1748093651968,0.44239079,673.47,673.02,0.769]
[1748093652172,0.44239079,673.46,673.02,0.769]
[1748093652368,0.44239079,673.45,673.02,0.769]
[1748093652668,0.44239079,673.44,673.02,0.769]
[1748093652870,0.44239079,673.43,673.02,0.769]
[1748093653173,0.44239079,673.42,673.02,0.769]
[1748093653370,0.29695619,673.5,673.02,0.769]
[1748093653573,0.44226387,673.49,673.02,0.769]
[1748093653774,0.44226387,673.48,673.02,0.769]
[1748093653971,0.44226387,673.47,673.02,0.769]
[1748093654174,0.44226295,673.46,673.02,0.769]
[1748093654373,0.44226295,673.45,673.02,0.769]
[1748093654676,0.44226295,673.44,673.02,0.769]
[1748093654972,0.44226295,673.43,673.02,0.769]
[1748093655173,0.29695619,673.5,673.02,0.769]
[1748093655475,0.44047627,673.49,673.02,0.769]
[1748093655676,0.44047627,673.48,673.02,0.769]
[1748093655872,0.44047627,673.47,673.02,0.769]
[1748093656075,0.44047627,673.46,673.02,0.769]
[1748093656276,0.44047627,673.45,673.02,0.769]
[1748093656472,0.44047627,673.44,673.02,0.769]
[1748093656674,0.44047627,673.43,673.02,0.769]
[1748093656978,0.29695619,673.5,673.02,0.769]
[1748093657178,0.44044303,673.49,673.02,0.769]
[1748093657378,0.44044303,673.48,673.02,0.769]
[1748093657681,0.44040781,673.47,673.02,0.769]
[1748093657980,0.44040781,673.46,673.02,0.769]
[1748093658181,0.44040781,673.45,673.02,0.769]
[1748093658481,0.44040781,673.44,673.02,0.769]
[1748093658780,0.29695619,673.5,673.02,0.769]
[1748093658981,0.44038702,673.49,673.02,0.769]
[1748093659178,0.44038702,673.48,673.02,0.769]
[1748093659380,0.44038702,673.47,673.02,0.769]
[1748093659580,0.29695619,673.5,673.03,0.84022621]
[1748093659780,0.43994886,673.49,673.03,0.84022621]
[1748093659981,0.43994886,673.48,673.03,0.84022621]
[1748093660181,0.43994886,673.47,673.03,0.84022621]
[1748093660381,0.29695619,673.5,673.03,0.84022621]
[1748093660582,0.43993554,673.49,673.03,0.84022621]
[1748093660782,0.43993554,673.48,673.04,0.84022621]
[1748093660983,0.43993554,673.47,673.04,0.84022621]
[1748093661178,0.29695619,673.5,673.04,0.84022621]
[1748093662178,0.29695619,673.5,673.03,0.84022621]
[1748093663485,0.44145416,673.49,673.03,0.84022621]
[1748093663685,0.29695619,673.5,673.03,0.84022621]
[1748093663886,0.44145104,673.49,673.03,0.84022621]
[1748093664085,0.29695619,673.5,673.03,0.84022621]
[1748093664285,0.44148679,673.49,673.03,0.84022621]
[1748093664484,0.44149501,673.48,673.03,0.84022621]
[1748093664684,0.29695619,673.5,673.03,0.84022621]
[1748093664879,0.44152911,673.49,673.03,0.84022621]
[1748093665083,0.44148182,673.48,673.03,0.84022621]
[1748093665278,0.44148182,673.47,673.03,0.84022621]
[1748093665479,0.44148182,673.46,673.03,0.84022621]
[1748093665683,0.44148182,673.45,673.03,0.84022621]
[1748093665881,0.44148182,673.44,673.03,0.84022621]
[1748093666085,0.44148182,673.43,673.03,0.84022621]
[1748093666285,0.44148182,673.42,673.03,0.84022621]
[1748093666486,0.44148182,673.41,673.03,0.84022621]
[1748093666690,0.29695619,673.5,673.03,0.84022621]
[1748093666889,0.44157743,673.49,673.03,0.84022621]
[1748093667189,0.44157743,673.48,673.02,0.769]
[1748093667489,0.44157743,673.47,673.02,0.769]
[1748093667690,0.44157743,673.46,673.02,0.769]
[1748093667883,0.44157743,673.45,673.02,0.769]
[1748093668088,0.73856008,673.44,673.02,0.769]
[1748093668283,0.44157743,673.43,673.02,0.769]
[1748093668791,0.4418153,673.42,673.02,0.769]
[1748093669090,0.4418153,673.41,673.02,0.769]
[1748093669291,0.4418153,673.4,673.02,0.769]
[1748093669489,0.4418153,673.39,673.02,0.769]
[1748093669689,0.4418153,673.38,673.02,0.769]
[1748093669888,0.4418153,673.37,673.02,0.769]
[1748093670084,0.44171391,673.36,673.02,0.769]
[1748093670389,0.29698265,673.44,673.02,0.769]
[1748093670789,0.44171509,673.43,673.02,0.769]
[1748093670991,0.44171509,673.42,673.02,0.769]
[1748093671192,0.29698265,673.44,673.02,0.769]
[1748093671193,0.44171509,673.41,673.02,0.769]
[1748093671488,0.44171509,673.4,673.02,0.769]
[1748093671692,0.44171509,673.39,673.02,0.769]
[1748093671891,0.44171509,673.38,673.02,0.769]
[1748093672092,0.44171509,673.37,673.02,0.769]
[1748093672292,0.44171509,673.36,673.02,0.769]
[1748093672493,0.44189727,673.35,673.02,0.769]
[1748093672690,0.29698265,673.44,673.02,0.769]
[1748093672986,0.44189612,673.43,673.02,0.769]
[1748093673190,0.44189612,673.42,673.02,0.769]
[1748093673390,0.44189612,673.41,673.02,0.769]
[1748093673590,0.44189612,673.4,673.02,0.769]
[1748093673790,0.44189612,673.39,673.02,0.769]
[1748093673991,0.44193559,673.38,673.02,0.769]
[1748093674192,0.44193559,673.37,673.02,0.769]
[1748093674394,0.44193559,673.36,673.02,0.769]
[1748093674588,0.44193559,673.35,673.02,0.769]
[1748093674788,0.44193559,673.34,673.02,0.769]
[1748093674988,0.29698265,673.44,673.02,0.769]
[1748093675195,0.44202135,673.43,673.02,0.769]
[1748093675390,0.44202135,673.42,673.02,0.769]
[1748093675587,0.29698265,673.44,673.02,0.769]
[1748093675588,0.44202135,673.41,673.02,0.769]
[1748093675791,0.44202135,673.4,673.02,0.769]
[1748093676086,0.44202135,673.39,673.02,0.769]
[1748093676290,0.29698265,673.44,673.02,0.769]
[1748093676488,0.44215182,673.43,673.02,0.769]
[1748093676692,0.44215182,673.42,673.02,0.769]
[1748093676892,0.44215182,673.41,673.02,0.769]
[1748093677088,0.44215182,673.4,673.02,0.769]
[1748093677287,0.44215182,673.39,673.02,0.769]
[1748093677493,0.29698265,673.44,673.02,0.769]
[1748093677791,0.44221807,673.43,673.02,0.769]
[1748093677990,0.44221164,673.42,673.02,0.769]
[1748093678193,0.44221164,673.41,673.02,0.769]
[1748093678395,0.44221164,673.4,673.02,0.769]
[1748093678595,0.44221164,673.39,673.02,0.769]
[1748093678795,0.44221164,673.38,673.02,0.769]
[1748093678995,0.44221164,673.37,673.02,0.769]
[1748093679295,0.44221164,673.36,673.02,0.769]
[1748093679496,0.44221164,673.35,673.02,0.769]
[1748093679697,0.44221164,673.34,673.02,0.769]
[1748093679894,0.4422805,673.33,673.02,0.769]
[1748093680094,0.4422805,673.32,673.02,0.769]
[1748093680296,0.4422805,673.31,673.02,0.769]
[1748093680499,0.29698265,673.44,673.02,0.769]
[1748093680796,0.44257833,673.43,673.02,0.769]
[1748093681097,0.29698265,673.44,673.02,0.769]
[1748093681299,0.44332605,673.43,673.02,0.769]
[1748093681499,0.44332605,673.42,673.02,0.769]
[1748093681693,0.44332605,673.41,673.02,0.769]
[1748093681997,0.44332605,673.4,673.02,0.769]
[1748093682197,0.44332605,673.39,673.02,0.769]
[1748093682398,0.44332605,673.38,673.02,0.769]
[1748093682697,0.44332605,673.37,673.02,0.769]
[1748093682893,0.44332605,673.36,673.02,0.769]
[1748093683093,0.44332605,673.35,673.02,0.769]
[1748093683294,0.44332605,673.34,673.02,0.769]
[1748093683499,0.44332605,673.33,673.02,0.769]
[1748093683700,0.44332605,673.32,673.02,0.769]
[1748093683999,0.44332605,673.31,673.02,0.769]
[1748093684199,0.44332605,673.3,673.02,0.769]
[1748093684500,0.44332605,673.29,673.02,0.769]
[1748093684699,0.44332605,673.28,673.02,0.769]
[1748093684999,0.44332605,673.27,673.02,0.769]
[1748093685198,0.44332605,673.26,673.02,0.769]
[1748093685396,0.44332605,673.25,673.02,0.769]
[1748093685596,0.44332605,673.24,673.02,0.769]
[1748093685796,0.44332605,673.23,673.02,0.769]
[1748093685998,0.44332605,673.22,673.02,0.769]
[1748093686199,0.44332605,673.21,673.02,0.769]
[1748093686399,0.44332605,673.2,673.02,0.769]
[1748093686596,0.44332605,673.19,673.02,0.769]
[1748093686803,0.29698265,673.44,673.02,0.769]
[1748093686804,0.44332605,673.18,673.02,0.769]
[1748093687102,0.44325009,673.17,673.02,0.769]
[1748093687302,0.29698265,673.44,673.02,0.769]
[1748093687500,0.44211613,673.43,673.02,0.769]
[1748093687700,0.29699147,673.42,673.02,0.769]
[1748093688302,0.44223417,673.41,673.02,0.769]
[1748093688502,0.73923446,673.4,673.02,0.769]
[1748093688704,0.2970047,673.39,673.02,0.769]
[1748093689004,0.44223417,673.38,673.02,0.769]
[1748093689196,0.73924769,673.37,673.02,0.769]
[1748093689398,0.7392521,673.36,673.02,0.769]
[1748093689597,0.73925652,673.35,673.02,0.769]
[1748093689797,0.73926093,673.34,673.02,0.769]
[1748093690000,0.73926534,673.33,673.02,0.769]
[1748093690203,0.73926975,673.32,673.02,0.769]
[1748093690403,0.4423561,673.31,673.02,0.769]
[1748093690599,0.4423561,673.3,673.02,0.769]
[1748093690805,0.4423561,673.29,673.02,0.769]
[1748093691004,0.4423561,673.28,673.02,0.769]
[1748093691201,0.4423561,673.27,673.02,0.769]
[1748093691403,0.4423561,673.26,673.02,0.769]
[1748093691702,0.4423561,673.25,673.02,0.769]
[1748093691904,0.4423561,673.24,673.02,0.769]
[1748093692105,0.4423561,673.23,673.02,0.769]
[1748093692305,0.44243904,673.22,673.02,0.769]
[1748093692600,0.44243904,673.21,673.02,0.769]
[1748093692804,0.44243904,673.2,673.02,0.769]
[1748093693004,0.44243904,673.19,673.02,0.769]
[1748093693204,0.44243904,673.18,673.02,0.769]
[1748093693407,0.44243904,673.17,673.02,0.769]
[1748093693704,0.44243904,673.16,673.02,0.769]
[1748093693907,0.44243904,673.15,673.02,0.769]
[1748093694102,0.44243904,673.14,673.02,0.769]
[1748093694302,0.29703558,673.32,673.02,0.769]
[1748093694506,0.44241405,673.31,673.02,0.769]
[1748093694806,0.44241405,673.3,673.02,0.769]
[1748093695105,0.44241405,673.29,673.02,0.769]
[1748093695306,0.44241405,673.28,673.02,0.769]
[1748093695506,0.44241405,673.27,673.02,0.769]
[1748093695706,0.44241405,673.26,673.02,0.769]
[1748093695901,0.44228883,673.25,673.02,0.769]
[1748093696099,0.44228883,673.24,673.02,0.769]
[1748093696304,0.44228883,673.23,673.02,0.769]
[1748093696505,0.44228883,673.22,673.02,0.769]
[1748093696706,0.44228883,673.21,673.02,0.769]
[1748093696907,0.44228883,673.2,673.02,0.769]
[1748093697107,0.44228883,673.19,673.02,0.769]
[1748093697407,0.44228883,673.18,673.02,0.769]
[1748093697609,0.44228883,673.17,673.02,0.769]
[1748093697811,0.44228883,673.16,673.02,0.769]
[1748093698008,0.44228883,673.15,673.02,0.769]
[1748093698209,0.44228883,673.14,673.02,0.769]
[1748093698507,0.44228883,673.13,673.02,0.769]
[1748093698707,0.29703558,673.32,673.02,0.769]
[1748093698908,0.44495122,673.31,673.02,0.769]
[1748093699104,0.44495122,673.3,673.02,0.769]
[1748093699305,0.44495122,673.29,673.02,0.769]
[1748093699509,0.44488045,673.28,673.02,0.769]
[1748093699710,0.44488045,673.27,673.02,0.769]
[1748093699905,0.44488045,673.26,673.02,0.769]
[1748093700107,0.44488045,673.25,673.02,0.769]
[1748093700306,0.44488045,673.24,673.02,0.769]
[1748093700509,0.44488045,673.23,673.02,0.769]
[1748093700706,0.29703558,673.32,673.02,0.769]
[1748093700707,0.44488045,673.22,673.02,0.769]
[1748093700903,0.44488045,673.21,672.57,0.88869638]
[1748093701105,0.44486424,673.2,672.57,0.88869638]
[1748093701303,0.44486424,673.19,672.58,0.83904602]
[1748093701510,0.44486424,673.18,672.58,0.83904602]
[1748093701710,0.44486424,673.17,672.58,0.83904602]
[1748093701903,0.44486424,673.16,672.58,0.83904602]
[1748093702106,0.44486424,673.15,672.58,0.83904602]
[1748093702305,0.44486424,673.14,672.59,0.83904602]
[1748093702507,0.29703558,673.32,672.59,0.83904602]
[1748093702709,0.44438782,673.31,672.59,0.83904602]
[1748093702907,0.44438782,673.3,672.59,0.83904602]
[1748093703205,0.44438782,673.29,672.59,0.83904602]
[1748093703409,0.44438782,673.28,672.59,0.83904602]
[1748093703608,0.44438782,673.28,672.44,0.88869638]
[1748093703609,0.44438782,673.27,672.6,0.83904602]
[1748093703814,0.44438782,673.26,672.6,1.39804602]
[1748093704013,0.44438782,673.25,672.6,1.39804602]
[1748093704212,0.44437223,673.24,672.6,1.39804602]
[1748093704410,0.44437223,673.23,672.6,1.39804602]
[1748093704612,0.44437223,673.22,672.6,1.39804602]
[1748093704810,0.44437223,673.21,672.6,1.39804602]
[1748093705013,0.44437223,673.2,672.61,0.83904602]
[1748093705215,0.44437223,673.19,672.61,0.83904602]
[1748093705512,0.44437223,673.18,672.61,0.83904602]
[1748093705712,0.44437223,673.17,672.61,0.83904602]
[1748093705913,0.44437223,673.16,672.62,0.83904602]
[1748093706115,0.44315886,673.15,672.62,0.83904602]
[1748093706309,0.44315886,673.14,672.62,0.83904602]
[1748093706512,0.29703558,673.32,672.62,0.83904602]
[1748093706811,0.44316213,673.31,672.62,0.83904602]
[1748093707009,0.44316213,673.3,672.62,0.83904602]
[1748093707210,0.44316213,673.29,672.63,0.83904602]
[1748093707410,0.44316213,673.28,672.63,0.83904602]
[1748093707713,0.44316213,673.27,672.63,0.83904602]
[1748093707915,0.44317534,673.26,672.63,0.83904602]
[1748093708115,0.44317534,673.25,672.63,0.83904602]
[1748093708315,0.44317534,673.24,672.64,0.83904602]
[1748093708514,0.44317534,673.23,672.64,0.83904602]
[1748093708714,0.44317534,673.22,672.64,0.83904602]
[1748093708915,0.44317534,673.21,672.64,0.83904602]
[1748093709117,0.44317534,673.2,672.64,0.83904602]
[1748093709314,0.44317534,673.19,672.64,0.83904602]
[1748093709513,0.44317534,673.18,672.65,0.83904602]
[1748093709819,0.44318644,673.17,672.65,0.83904602]
[1748093710018,0.44318644,673.16,672.65,0.83904602]
[1748093710217,0.44318644,673.15,672.65,0.83904602]
[1748093710519,0.29703558,673.32,672.66,0.83904602]
[1748093710818,0.44318877,673.31,672.66,0.83904602]